Workbook

Sheet Notes
I2: Separate Construction Period
B3: At DSCR > 1, 50% is swept by bank | I3: Move Transaction Costs to S&U
B5: If production of single customer is 60% | I5: Problems with inflation in first year
I6: Huur Technische ruimte
B7: Put in 1/2 of equity in preference shares at 12% | I7: Working Capital
I8: Fix Depreciation
B9: Look at maco
B11: Preference Interest Senior to sweep
B13: Target Up-front cash
B17: 2017-08-29
B19: construction financing, bonds 6% p.a. as of 1 st of September 2016 | H19: 1050 | I19: financing
B21: senior debt - quaterly repayments
B23: capex, say 1.6 MEUR, how to finance? | F23: fix the debt, then cash sweep
B25: taxs
B27: construction started 1 Sept 2016, ends 1 November
B29: cash sweep bank (above 1.0 , 50% sweep)

Sheet Model
C1: DATA | D1: =D178 -> 0.06113750041 | E1: =D10 -> 2016-08-31 | F1: =EOMONTH(E1,8) -> 2017-04-30 | G1: =EOMONTH(F1,4) -> 2017-08-31 | H1: =EDATE(G1,12) -> 2018-08-31 | I1: 2019-08-31 | J1: 2020-08-31 | K1: 2021-08-31 | L1: 2022-08-31 | M1: 2023-08-31 | N1: 2024-08-31 | O1: 2025-08-31 | P1: 2026-08-31 | Q1: 2027-08-31 | R1: 2028-08-31 | S1: 2029-08-31 | T1: 2030-08-31 | U1: 2031-08-31 | V1: 2032-08-31 | W1: 2033-08-31 | X1: 2034-08-31 | Y1: 2035-08-31 | Z1: 2036-08-31
F2: =1/3 -> 0.3333333333 | G2: 1 | H2: 1 | I2: 1 | J2: 1 | K2: 1 | L2: 1 | M2: 1 | N2: 1 | O2: 1 | P2: 1 | Q2: 1 | R2: 1 | S2: 1 | T2: 1 | U2: 1 | V2: 1 | W2: 1 | X2: 1 | Y2: 1 | Z2: 1
F3: 0 | G3: 1 | H3: =G3+1 -> 2 | I3: =H3+1 -> 3 | J3: 4 | K3: 5 | L3: 6 | M3: 7 | N3: 8 | O3: 9 | P3: 10 | Q3: 11 | R3: 12 | S3: 13 | T3: 14 | U3: 15 | V3: 16 | W3: 17 | X3: 18 | Y3: 19 | Z3: 20
A4: Summary
D6: Verkoop Koude de Burg | G6: ='Kosten & Scenario''s'!$K$9 -> 51840 | K6: Equity IRR
B7: Crowd Funding | Z7: 7
C8: Total Cash Funding | D8: 1050000 | J8: Uses of Funds | L8: Amount | M8: Percent | R8: Scenarios | T8: Scenario 1 | U8: Scenario 2 | V8: Scenario 3 | Z8: 85
C9: Annual Interest Rate | D9: 0.06 | F9: Pre-tax Project IRR | H9: =Model!D178 -> 0.06113750041 | J9: Capital Expenditures | L9: =E195 -> 1465519.303 | R9: Koude levering De Burg | T9: 51840 | U9: 57600 | V9: 72000
C10: Funding Date | D10: 2016-08-31 | F10: After-tax Project IRR | H10: =Model!D191 -> 0.05077382624 | J10: Transaction Costs | L10: =E196 -> 125000 | R10: MW | T10: ='Kosten & Scenario''s'!$K$11 -> 5300 | U10: ='Kosten & Scenario''s'!$K$11 -> 5300 | V10: ='Kosten & Scenario''s'!$K$11 -> 5300
J11: Beheerkosten | L11: =E197 -> 50000 | R11: Verkoopprijs WKO De Burg | T11: 1250000 | U11: 1350000 | V11: 1600000
B12: Sr lening | F12: Target Equity IRR | H12: =Z8/1000 -> 0.085 | J12: Sub-total | L12: =E198 -> 1640519.303 | R12: Commerciele waarde | T12: 1870000 | U12: 1870000 | V12: 1870000
C13: Minimum DSCR Sr Lening | D13: 1.3 | F13: Equity IRR | H13: =Model!D419 -> 0.0680737406 | J13: Interest During Construction | L13: =E199 -> 29361.70763 | R13: Max sr Debt | T13: 1064100 | U13: 1072100 | V13: 1293100 | AA13: =+IF(ABS(net_position)>0.5,"NEED TO RUN MODEL","") -> NEED TO RUN MODEL
C14: Resulting | D14: =D265 -> 1.300234803 | J14: Cash for Reserves | L14: =E232 -> 52545.03406 | R14: Sr Debt / Capex | T14: 0.6050625 | U14: 0.6700625 | V14: 0.8081875 | AA14: optimalisatie van SHL eruit gehaald dus model lost niet zelf funding gap op
C15: Rente | D15: 0.034 | F15: Resulting Cap Exp | H15: 1465519.303 | J15: Total | L15: =SUM(L12:L14) -> 1722426.045 | R15: Max Jr Lening | T15: 129100 | U15: 142100 | V15: 177100
C16: Effective Quarterly | D16: ='Annualized PF'!F22 -> 0.032725 | F16: Electricity Cost/kWh | H16: =Z7/100 -> 0.07 | R16: cash equity IRR | T16: 0.104 | U16: 0.103 | V16: 0.101
C17: Looptijd | D17: 17 | J17: Sources of Funds | R17: Equity | T17: 325000 | U17: 350000 | V17: 400000
C18: Sr. Debt amount | D18: 1352166.606 | F18: Fix Debt Repayments | H18: FALSE | J18: Senior Debt | L18: =E218 -> 1147916.507 | M18: =L18/L22 -> 0.6664532916 | R18: Start SHL | T18: 0 | U18: 0 | V18: 0
C19: Max Debt to Capital | D19: 0.65 | J19: Subordinated Debt | L19: =E219 -> 0 | M19: =L19/L22 -> 0 | R19: Total non-equity | T19: =sr_1+jr_1+shl_1 -> 1193200 | U19: =sr_1+jr_1+shl_1 -> 1193200 | V19: =sr_1+jr_1+shl_1 -> 1193200
C20: Cash Sweep | D20: 1 | F20: Apply Dynamic Goal Seek | H20: TRUE | J20: Preference | L20: =E220 -> 0 | M20: =L20/$L$22 -> 0
C21: Level Repayment (True) /Sculpt | D21: TRUE | J21: Equity | L21: =E239 -> 574509.5378 | M21: =L21/$L$22 -> 0.3335467084
C22: Max DSCR Before Sweep | D22: 1.5 | F22: NPV | H22: =Model!D422 -> -89386.22758 | J22: Total | L22: =SUM(L18:L21) -> 1722426.045
B24: Jr Lening | F24: Taxes
C25: Apply Junior Debt | D25: FALSE | F25: First Increment | H25: 200000 | J25: Preference Shares
C26: Min DSCR After Jr | D26: 1.1 | F26: Tax Rate 1st Increment | H26: 0.2 | J26: Percent of Equity | L26: 0
C27: Actual | D27: =D284 -> 1.300234803 | F27: Tax Rate 2nd Increment | H27: 0.25 | J27: Interest Rate | L27: 0.12
C28: Rente | D28: 0.065 | J28: Tenor | L28: 20
C29: Effective Quarterly | D29: ='Annualized PF'!I22 -> 0.0625625 | F29: Construction Months | H29: 12
C30: Looptijd | D30: 15
C31: Amount | D31: 155100 | F31: Tax Depreciation Life | H31: 20
C32: Max Total Debt to Capital | D32: 0.8 | F32: Annual Rate | H32: =1/H31 -> 0.05
C33: Level Repayment | D33: TRUE
F34: DSRA Percent | H34: 0.5
A36: Turnover
B37: De Burg
C38: Koude levering | D38: =Model!de_burg -> 51840 | F38: =$D38*F$2 -> 17280 | G38: 51840 | H38: 51840 | I38: 51840 | J38: 51840 | K38: 51840 | L38: 51840 | M38: 51840 | N38: 51840 | O38: 51840 | P38: 51840 | Q38: 51840 | R38: 51840 | S38: 51840 | T38: 51840 | U38: 51840 | V38: 51840 | W38: 51840 | X38: 51840 | Y38: 51840 | Z38: 51840
C39: Tarief koude | D39: 2.47 | F39: =D39*(100%+$D40*F2) -> 2.48235 | G39: =F39*(100%+$D40*G2) -> 2.51958525 | H39: 2.557379029 | I39: 2.595739714 | J39: 2.63467581 | K39: 2.674195947 | L39: 2.714308886 | M39: 2.75502352 | N39: 2.796348872 | O39: 2.838294105 | P39: 2.880868517 | Q39: 2.924081545 | R39: 2.967942768 | S39: 3.012461909 | T39: 3.057648838 | U39: 3.103513571 | V39: 3.150066274 | W39: 3.197317268 | X39: 3.245277027 | Y39: 3.293956183 | Z39: 3.343365526
C40: Indexatie tarief | D40: 0.015
C41: Omzet koude levering | F41: =F38*D39 -> 42681.6 | G41: =G38*F39 -> 128685.024 | H41: =H38*H39 -> 132574.5289 | I41: 134563.1468 | J41: 136581.594 | K41: 138630.3179 | L41: 140709.7727 | M41: 142820.4193 | N41: 144962.7255 | O41: 147137.1664 | P41: 149344.2239 | Q41: 151584.3873 | R41: 153858.1531 | S41: 156166.0254 | T41: 158508.5158 | U41: 160886.1435 | V41: 163299.4357 | W41: 165748.9272 | X41: 168235.1611 | Y41: 170758.6885 | Z41: 173320.0688
C43: Vermogen koude | D43: 5300 | F43: =$D43*F2 -> 1766.666667 | G43: 5300 | H43: 5300 | I43: 5300 | J43: 5300 | K43: 5300 | L43: 5300 | M43: 5300 | N43: 5300 | O43: 5300 | P43: 5300 | Q43: 5300 | R43: 5300 | S43: 5300 | T43: 5300 | U43: 5300 | V43: 5300 | W43: 5300 | X43: 5300 | Y43: 5300 | Z43: 5300
C44: Vastrecht koude | D44: 11.66 | F44: =D44*(100%+$D45*F2) -> 11.7183 | G44: =F44*(100%+$D45*G2) -> 11.8940745 | H44: 12.07248562 | I44: 12.2535729 | J44: 12.4373765 | K44: 12.62393714 | L44: 12.8132962 | M44: 13.00549564 | N44: 13.20057808 | O44: 13.39858675 | P44: 13.59956555 | Q44: 13.80355903 | R44: 14.01061242 | S44: 14.2207716 | T44: 14.43408318 | U44: 14.65059443 | V44: 14.87035334 | W44: 15.09340864 | X44: 15.31980977 | Y44: 15.54960692 | Z44: 15.78285102
C45: Indexatie vastrecht | D45: 0.015
C46: Omzet vastrecht koude | F46: =F43*F44 -> 20702.33 | G46: =G43*G44 -> 63038.59485 | H46: =H43*H44 -> 63984.17377 | I46: 64943.93638 | J46: 65918.09543 | K46: 66906.86686 | L46: 67910.46986 | M46: 68929.12691 | N46: 69963.06381 | O46: 71012.50977 | P46: 72077.69741 | Q46: 73158.86288 | R46: 74256.24582 | S46: 75370.08951 | T46: 76500.64085 | U46: 77648.15046 | V46: 78812.87272 | W46: 79995.06581 | X46: 81194.9918 | Y46: 82412.91667 | Z46: 83649.11042
C48: Totaal omzet De Burg | F48: =F46+F41 -> 63383.93 | G48: =G46+G41 -> 191723.6188 | H48: =H46+H41 -> 196558.7026 | I48: 199507.0832 | J48: 202499.6894 | K48: 205537.1848 | L48: 208620.2425 | M48: 211749.5462 | N48: 214925.7894 | O48: 218149.6762 | P48: 221421.9213 | Q48: 224743.2502 | R48: 228114.3989 | S48: 231536.1149 | T48: 235009.1566 | U48: 238534.294 | V48: 242112.3084 | W48: 245743.993 | X48: 249430.1529 | Y48: 253171.6052 | Z48: 256969.1793 | AB48: To model
B50: Stammis
C51: Warmte levering | D51: 342.5 | F51: =$D51*F2 -> 114.1666667 | G51: 342.5 | H51: 342.5 | I51: 342.5 | J51: 342.5 | K51: 342.5 | L51: 342.5 | M51: 342.5 | N51: 342.5 | O51: 342.5 | P51: 342.5 | Q51: 342.5 | R51: 342.5 | S51: 342.5 | T51: 342.5 | U51: 342.5 | V51: 342.5 | W51: 342.5 | X51: 342.5 | Y51: 342.5 | Z51: 342.5
C52: Tarief warmte | D52: 18.71 | F52: =D52*(100%+$D53*F2) -> 18.80355 | G52: =F52*(100%+$D53*G2) -> 19.08560325 | H52: 19.3718873 | I52: 19.66246561 | J52: 19.95740259 | K52: 20.25676363 | L52: 20.56061509 | M52: 20.86902431 | N52: 21.18205968 | O52: 21.49979057 | P52: 21.82228743 | Q52: 22.14962174 | R52: 22.48186607 | S52: 22.81909406 | T52: 23.16138047 | U52: 23.50880118 | V52: 23.86143319 | W52: 24.21935469 | X52: 24.58264501 | Y52: 24.95138469 | Z52: 25.32565546
C53: Indexatie tarief | D53: 0.015
C54: Omzet warmte levering | F54: =F51*F52 -> 2146.738625 | G54: =G51*G52 -> 6536.819113 | H54: =H51*H52 -> 6634.8714 | I54: 6734.394471 | J54: 6835.410388 | K54: 6937.941544 | L54: 7042.010667 | M54: 7147.640827 | N54: 7254.855439 | O54: 7363.678271 | P54: 7474.133445 | Q54: 7586.245447 | R54: 7700.039128 | S54: 7815.539715 | T54: 7932.772811 | U54: 8051.764403 | V54: 8172.540869 | W54: 8295.128982 | X54: 8419.555917 | Y54: 8545.849256 | Z54: 8674.036995
C56: Vermogen warmte | D56: 1000 | F56: =$D56*F2 -> 333.3333333 | G56: 1000 | H56: 1000 | I56: 1000 | J56: 1000 | K56: 1000 | L56: 1000 | M56: 1000 | N56: 1000 | O56: 1000 | P56: 1000 | Q56: 1000 | R56: 1000 | S56: 1000 | T56: 1000 | U56: 1000 | V56: 1000 | W56: 1000 | X56: 1000 | Y56: 1000 | Z56: 1000
C57: Vastrecht warmte | D57: 1.562 | F57: =D57*(100%+$D58*F2) -> 1.56981 | G57: =F57*(100%+$D58*G2) -> 1.59335715 | H57: 1.617257507 | I57: 1.64151637 | J57: 1.666139115 | K57: 1.691131202 | L57: 1.71649817 | M57: 1.742245643 | N57: 1.768379327 | O57: 1.794905017 | P57: 1.821828593 | Q57: 1.849156021 | R57: 1.876893362 | S57: 1.905046762 | T57: 1.933622464 | U57: 1.962626801 | V57: 1.992066203 | W57: 2.021947196 | X57: 2.052276404 | Y57: 2.08306055 | Z57: 2.114306458
C58: Indexatie vastrecht | D58: 0.015
C59: Omzet vastrecht warmte | F59: =F56*F57 -> 523.27 | G59: =G56*G57 -> 1593.35715 | H59: =H56*H57 -> 1617.257507 | I59: 1641.51637 | J59: 1666.139115 | K59: 1691.131202 | L59: 1716.49817 | M59: 1742.245643 | N59: 1768.379327 | O59: 1794.905017 | P59: 1821.828593 | Q59: 1849.156021 | R59: 1876.893362 | S59: 1905.046762 | T59: 1933.622464 | U59: 1962.626801 | V59: 1992.066203 | W59: 2021.947196 | X59: 2052.276404 | Y59: 2083.06055 | Z59: 2114.306458
C61: Koude levering | D61: 14 | F61: =$D61*F2 -> 4.666666667 | G61: 14 | H61: 14 | I61: 14 | J61: 14 | K61: 14 | L61: 14 | M61: 14 | N61: 14 | O61: 14 | P61: 14 | Q61: 14 | R61: 14 | S61: 14 | T61: 14 | U61: 14 | V61: 14 | W61: 14 | X61: 14 | Y61: 14 | Z61: 14
C62: Tarief koude | D62: 18.71 | F62: =D62*(100%+$D63*F2) -> 18.77236667 | G62: =F62*(100%+$D63*G2) -> 18.96009033 | H62: 19.14969124 | I62: 19.34118815 | J62: 19.53460003 | K62: 19.72994603 | L62: 19.92724549 | M62: 20.12651795 | N62: 20.32778313 | O62: 20.53106096 | P62: 20.73637157 | Q62: 20.94373528 | R62: 21.15317263 | S62: 21.36470436 | T62: 21.5783514 | U62: 21.79413492 | V62: 22.01207627 | W62: 22.23219703 | X62: 22.454519 | Y62: 22.67906419 | Z62: 22.90585483
C63: Indexatie tarief | D63: 0.01
C64: Omzet koude levering | F64: =F61*F62 -> 87.60437778 | G64: =G61*G62 -> 265.4412647 | H64: =H61*H62 -> 268.0956773 | I64: 270.7766341 | J64: 273.4844004 | K64: 276.2192444 | L64: 278.9814369 | M64: 281.7712512 | N64: 284.5889638 | O64: 287.4348534 | P64: 290.3092019 | Q64: 293.2122939 | R64: 296.1444169 | S64: 299.1058611 | T64: 302.0969197 | U64: 305.1178889 | V64: 308.1690678 | W64: 311.2507584 | X64: 314.363266 | Y64: 317.5068987 | Z64: 320.6819677
C66: Vermogen koude | D66: 0 | F66: =$D66*F2 -> 0 | G66: 0 | H66: 0 | I66: 0 | J66: 0 | K66: 0 | L66: 0 | M66: 0 | N66: 0 | O66: 0 | P66: 0 | Q66: 0 | R66: 0 | S66: 0 | T66: 0 | U66: 0 | V66: 0 | W66: 0 | X66: 0 | Y66: 0 | Z66: 0
C67: Vastrecht koude | D67: 0 | F67: =D67*(100%+$D68*F2) -> 0 | G67: =F67*(100%+$D68*G2) -> 0 | H67: 0 | I67: 0 | J67: 0 | K67: 0 | L67: 0 | M67: 0 | N67: 0 | O67: 0 | P67: 0 | Q67: 0 | R67: 0 | S67: 0 | T67: 0 | U67: 0 | V67: 0 | W67: 0 | X67: 0 | Y67: 0 | Z67: 0
C68: Indexatie vastrecht | D68: 0.01
C69: Omzet vastrecht koude | F69: =F66*F67 -> 0 | G69: =G66*G67 -> 0 | H69: =H66*H67 -> 0 | I69: 0 | J69: 0 | K69: 0 | L69: 0 | M69: 0 | N69: 0 | O69: 0 | P69: 0 | Q69: 0 | R69: 0 | S69: 0 | T69: 0 | U69: 0 | V69: 0 | W69: 0 | X69: 0 | Y69: 0 | Z69: 0
C71: Totaal omzet Stammis | F71: =F69+F64+F59+F54 -> 2757.613003 | G71: =G69+G64+G59+G54 -> 8395.617528 | H71: =H69+H64+H59+H54 -> 8520.224584 | I71: 8646.687475 | J71: 8775.033904 | K71: 8905.29199 | L71: 9037.490274 | M71: 9171.657721 | N71: 9307.82373 | O71: 9446.018142 | P71: 9586.271239 | Q71: 9728.613762 | R71: 9873.076907 | S71: 10019.69234 | T71: 10168.49219 | U71: 10319.50909 | V71: 10472.77614 | W71: 10628.32694 | X71: 10786.19559 | Y71: 10946.4167 | Z71: 11109.02542 | AB71: To model
C73: Total Revenues | F73: =F71+F48 -> 66141.543 | G73: 200119.2364 | H73: 205078.9272 | I73: 208153.7706 | J73: 211274.7233 | K73: 214442.4767 | L73: 217657.7328 | M73: 220921.2039 | N73: 224233.6131 | O73: 227595.6943 | P73: 231008.1926 | Q73: 234471.8639 | R73: 237987.4758 | S73: 241555.8072 | T73: 245177.6488 | U73: 248853.8031 | V73: 252585.0845 | W73: 256372.3199 | X73: 260216.3485 | Y73: 264118.0219 | Z73: 268078.2047
A75: OPERATING COST
B76: De Burg
C77: Electriciteitsverbruik | D77: =D38*4.90041666666667 -> 254037.6 | F77: =$D77*F2 -> 84679.2 | G77: 254037.6 | H77: 254037.6 | I77: 254037.6 | J77: 254037.6 | K77: 254037.6 | L77: 254037.6 | M77: 254037.6 | N77: 254037.6 | O77: 254037.6 | P77: 254037.6 | Q77: 254037.6 | R77: 254037.6 | S77: 254037.6 | T77: 254037.6 | U77: 254037.6 | V77: 254037.6 | W77: 254037.6 | X77: 254037.6 | Y77: 254037.6 | Z77: 254037.6
C78: Inkoopprijs elektriciteit | D78: =Model!H16 -> 0.07 | F78: =D78*(100%+$D79*F2) -> 0.07023333333 | G78: =F78*(100%+$D79*G2) -> 0.07093566667 | H78: 0.07164502333 | I78: 0.07236147357 | J78: 0.0730850883 | K78: 0.07381593919 | L78: 0.07455409858 | M78: 0.07529963956 | N78: 0.07605263596 | O78: 0.07681316232 | P78: 0.07758129394 | Q78: 0.07835710688 | R78: 0.07914067795 | S78: 0.07993208473 | T78: 0.08073140558 | U78: 0.08153871963 | V78: 0.08235410683 | W78: 0.0831776479 | X78: 0.08400942438 | Y78: 0.08484951862 | Z78: 0.08569801381
C79: Indexatie inkoopprijs | D79: 0.01
C80: Totaal inkoopkosten | F80: =F77*F78 -> 5947.30248 | G80: =G77*G78 -> 18020.32651 | H80: =H77*H78 -> 18200.52978 | I80: 18382.53508 | J80: 18566.36043 | K80: 18752.02403 | L80: 18939.54427 | M80: 19128.93972 | N80: 19320.22911 | O80: 19513.4314 | P80: 19708.56572 | Q80: 19905.65137 | R80: 20104.70789 | S80: 20305.75497 | T80: 20508.81252 | U80: 20713.90064 | V80: 20921.03965 | W80: 21130.25005 | X80: 21341.55255 | Y80: 21554.96807 | Z80: 21770.51775
B82: Stammis
C83: Electriciteitsverbruik | D83: 19028 | F83: =$D83*F2 -> 6342.666667 | G83: 19028 | H83: 19028 | I83: 19028 | J83: 19028 | K83: 19028 | L83: 19028 | M83: 19028 | N83: 19028 | O83: 19028 | P83: 19028 | Q83: 19028 | R83: 19028 | S83: 19028 | T83: 19028 | U83: 19028 | V83: 19028 | W83: 19028 | X83: 19028 | Y83: 19028 | Z83: 19028
C84: Inkoopprijs elektriciteit | D84: =Model!D78 -> 0.07 | F84: =D84*(100%+$D85*F2) -> 0.07023333333 | G84: =F84*(100%+$D85*G2) -> 0.07093566667 | H84: 0.07164502333 | I84: 0.07236147357 | J84: 0.0730850883 | K84: 0.07381593919 | L84: 0.07455409858 | M84: 0.07529963956 | N84: 0.07605263596 | O84: 0.07681316232 | P84: 0.07758129394 | Q84: 0.07835710688 | R84: 0.07914067795 | S84: 0.07993208473 | T84: 0.08073140558 | U84: 0.08153871963 | V84: 0.08235410683 | W84: 0.0831776479 | X84: 0.08400942438 | Y84: 0.08484951862 | Z84: 0.08569801381
C85: Indexatie inkoopprijs | D85: 0.01
C86: Totaal inkoopkosten | F86: =F83*F84 -> 445.4666222 | G86: =G83*G84 -> 1349.763865 | H86: =H83*H84 -> 1363.261504 | I86: 1376.894119 | J86: 1390.66306 | K86: 1404.569691 | L86: 1418.615388 | M86: 1432.801542 | N86: 1447.129557 | O86: 1461.600853 | P86: 1476.216861 | Q86: 1490.97903 | R86: 1505.88882 | S86: 1520.947708 | T86: 1536.157185 | U86: 1551.518757 | V86: 1567.033945 | W86: 1582.704284 | X86: 1598.531327 | Y86: 1614.51664 | Z86: 1630.661807
C88: Total | F88: =F86+F80 -> 6392.769102 | G88: =G86+G80 -> 19370.09038 | H88: =H86+H80 -> 19563.79128 | I88: 19759.4292 | J88: 19957.02349 | K88: 20156.59372 | L88: 20358.15966 | M88: 20561.74126 | N88: 20767.35867 | O88: 20975.03226 | P88: 21184.78258 | Q88: 21396.6304 | R88: 21610.59671 | S88: 21826.70268 | T88: 22044.9697 | U88: 22265.4194 | V88: 22488.07359 | W88: 22712.95433 | X88: 22940.08387 | Y88: 23169.48471 | Z88: 23401.17956
A90: OPEX | F90: 0 | G90: 1 | H90: =G90+1 -> 2 | I90: =H90+1 -> 3 | J90: 4 | K90: 5 | L90: 6 | M90: 7 | N90: 8 | O90: 9 | P90: 10 | Q90: 11 | R90: 12 | S90: 13 | T90: 14 | U90: 15 | V90: 16 | W90: 17 | X90: 18 | Y90: 19 | Z90: 20 | AA90: 21
B91: De Burg + Stammis
B92: Onderhoud
C93: Asset kostprijs | D93: =Model!D140 -> 1465519.303 | F93: =Model!D93 -> 1465519.303 | G93: =Model!F93 -> 1465519.303 | H93: =Model!G93 -> 1465519.303 | I93: =Model!H93 -> 1465519.303 | J93: =Model!I93 -> 1465519.303 | K93: =Model!J93 -> 1465519.303
C94: % onderhoudskosten | F94: 0.005 | G94: 0.0075 | H94: 0.01 | I94: 0.015 | J94: 0.02 | K94: 0.025
C95: Indexatie | L95: 0.015 | M95: =Model!L95 -> 0.015 | N95: =Model!M95 -> 0.015 | O95: =Model!N95 -> 0.015 | P95: =Model!O95 -> 0.015 | Q95: =Model!P95 -> 0.015 | R95: =Model!Q95 -> 0.015 | S95: =Model!R95 -> 0.015 | T95: =Model!S95 -> 0.015 | U95: =Model!T95 -> 0.015 | V95: =Model!U95 -> 0.015 | W95: =Model!V95 -> 0.015 | X95: =Model!W95 -> 0.015 | Y95: =Model!X95 -> 0.015 | Z95: =Model!Y95 -> 0.015
C96: Onderhoudskosten | F96: =F94*F93 -> 7327.596517 | G96: 10991.39478 | H96: 14655.19303 | I96: 21982.78955 | J96: 29310.38607 | K96: 36637.98258 | L96: =K96*(100%+$L95) -> 37187.55232 | M96: 37745.36561 | N96: 38311.54609 | O96: 38886.21928 | P96: 39469.51257 | Q96: 40061.55526 | R96: 40662.47859 | S96: 41272.41577 | T96: 41891.502 | U96: 42519.87453 | V96: 43157.67265 | W96: 43805.03774 | X96: 44462.11331 | Y96: 45129.04501 | Z96: 45805.98068 | AB96: To model
B98: Monitoring & Verification
C99: Project kostprijs | D99: =Model!D140 -> 1465519.303
C100: % monitoringkosten | D100: 0.004
C101: Indexatie | D101: 0.015
C102: Monitoring kosten | F102: =$D$99*$D$100*(100%+$D$101)*F2 -> 1983.336124 | G102: =$D$99*$D$100*G2*(100%+$D$101)^H90 -> 6039.258497 | H102: 6129.847375 | I102: 6221.795085 | J102: 6315.122011 | K102: 6409.848842 | L102: 6505.996574 | M102: 6603.586523 | N102: 6702.640321 | O102: 6803.179926 | P102: 6905.227624 | Q102: 7008.806039 | R102: 7113.938129 | S102: 7220.647201 | T102: 7328.956909 | U102: 7438.891263 | V102: 7550.474632 | W102: 7663.731751 | X102: 7778.687728 | Y102: 7895.368044 | Z102: 8013.798564
G103: `
B104: Verzekering
C105: Omzet levering koude | F105: =Model!F41 -> 42681.6 | G105: =Model!G41 -> 128685.024 | H105: =Model!H41 -> 132574.5289 | I105: =Model!I41 -> 134563.1468 | J105: =Model!J41 -> 136581.594 | K105: =Model!K41 -> 138630.3179 | L105: =Model!L41 -> 140709.7727 | M105: =Model!M41 -> 142820.4193 | N105: =Model!N41 -> 144962.7255 | O105: =Model!O41 -> 147137.1664 | P105: =Model!P41 -> 149344.2239 | Q105: =Model!Q41 -> 151584.3873 | R105: =Model!R41 -> 153858.1531 | S105: =Model!S41 -> 156166.0254 | T105: =Model!T41 -> 158508.5158 | U105: =Model!U41 -> 160886.1435 | V105: =Model!V41 -> 163299.4357 | W105: =Model!W41 -> 165748.9272 | X105: =Model!X41 -> 168235.1611 | Y105: =Model!Y41 -> 170758.6885 | Z105: =Model!Z41 -> 173320.0688
C106: Omzet vastrechte koude | F106: =Model!F46 -> 20702.33 | G106: =Model!G46 -> 63038.59485 | H106: =Model!H46 -> 63984.17377 | I106: =Model!I46 -> 64943.93638 | J106: =Model!J46 -> 65918.09543 | K106: =Model!K46 -> 66906.86686 | L106: =Model!L46 -> 67910.46986 | M106: =Model!M46 -> 68929.12691 | N106: =Model!N46 -> 69963.06381 | O106: =Model!O46 -> 71012.50977 | P106: =Model!P46 -> 72077.69741 | Q106: =Model!Q46 -> 73158.86288 | R106: =Model!R46 -> 74256.24582 | S106: =Model!S46 -> 75370.08951 | T106: =Model!T46 -> 76500.64085 | U106: =Model!U46 -> 77648.15046 | V106: =Model!V46 -> 78812.87272 | W106: =Model!W46 -> 79995.06581 | X106: =Model!X46 -> 81194.9918 | Y106: =Model!Y46 -> 82412.91667 | Z106: =Model!Z46 -> 83649.11042
C107: Totaal | F107: =F105+F106 -> 63383.93 | G107: =G105+G106 -> 191723.6188 | H107: =H105+H106 -> 196558.7026 | I107: 199507.0832 | J107: 202499.6894 | K107: 205537.1848 | L107: 208620.2425 | M107: 211749.5462 | N107: 214925.7894 | O107: 218149.6762 | P107: 221421.9213 | Q107: 224743.2502 | R107: 228114.3989 | S107: 231536.1149 | T107: 235009.1566 | U107: 238534.294 | V107: 242112.3084 | W107: 245743.993 | X107: 249430.1529 | Y107: 253171.6052 | Z107: 256969.1793
C108: % verzekeringskosten | D108: 0.015 | F108: =F107*$D$108 -> 950.75895 | G108: 2875.854283 | H108: 2948.380539 | I108: 2992.606247 | J108: 3037.495341 | K108: 3083.057771 | L108: 3129.303638 | M108: 3176.243192 | N108: 3223.88684 | O108: 3272.245143 | P108: 3321.32882 | Q108: 3371.148752 | R108: 3421.715984 | S108: 3473.041723 | T108: 3525.137349 | U108: 3578.014409 | V108: 3631.684626 | W108: 3686.159895 | X108: 3741.452293 | Y108: 3797.574078 | Z108: 3854.537689 | AB108: To model
B110: Beheerkosten
C111: Totaal investering | D111: =D140+D146+D153 -> 1465519.303
C112: % Beheerkosten | D112: 0.01
C113: Indexatie | D113: 0.015
C114: Beheerkosten | E114: 50000 | F114: 0 | G114: =$D$111*$D$112*(1+$D$113)^(G$90)*G2 -> 14875.02093 | H114: 15098.14624 | I114: 15324.61844 | J114: 15554.48771 | K114: 15787.80503 | L114: 16024.6221 | M114: 16264.99144 | N114: 16508.96631 | O114: 16756.6008 | P114: 17007.94981 | Q114: 17263.06906 | R114: 17522.0151 | S114: 17784.84532 | T114: 18051.618 | U114: 18322.39227 | V114: 18597.22816 | W114: 18876.18658 | X114: 19159.32938 | Y114: 19446.71932 | Z114: 19738.42011 | AB114: To model
C116: Huur Technische ruimte | D116: 5000 | F116: =$D$116*F2 -> 1666.666667 | G116: 5000 | H116: 5000 | I116: 5000 | J116: 5000 | K116: 5000 | L116: 5000 | M116: 5000 | N116: 5000 | O116: 5000 | P116: 5000 | Q116: 5000 | R116: 5000 | S116: 5000 | T116: 5000 | U116: 5000 | V116: 5000 | W116: 5000 | X116: 5000 | Y116: 5000 | Z116: 5000
C118: Total Operating Expenses | F118: =F114+F108+F102+F96+F116 -> 11928.35826 | G118: =G114+G108+G102+G96+G116 -> 39781.52848 | H118: 43831.56719 | I118: 51521.80932 | J118: 59217.49113 | K118: 66918.69423 | L118: 67847.47464 | M118: 68790.18676 | N118: 69747.03956 | O118: 70718.24515 | P118: 71704.01883 | Q118: 72704.57911 | R118: 73720.1478 | S118: 74750.95002 | T118: 75797.21427 | U118: 76859.17248 | V118: 77937.06007 | W118: 79031.11597 | X118: 80141.58271 | Y118: 81268.70645 | Z118: 82412.73705
C120: EBITDA | F120: =F73-F118-F88 -> 47820.41564 | G120: 140967.6175 | H120: 141683.5687 | I120: 136872.5321 | J120: 132100.2087 | K120: 127367.1888 | L120: 129452.0985 | M120: 131569.2759 | N120: 133719.2149 | O120: 135902.4169 | P120: 138119.3912 | Q120: 140370.6544 | R120: 142656.7313 | S120: 144978.1545 | T120: 147335.4648 | U120: 149729.2112 | V120: 152159.9509 | W120: 154628.2496 | X120: 157134.6819 | Y120: 159679.8307 | Z120: 162264.2881
C121: Check | F121: =F120-F246 -> 3333.333333 | G121: 0 | H121: 0 | I121: 0 | J121: 0 | K121: 0 | L121: 0 | M121: 0 | N121: 0 | O121: 0 | P121: 0 | Q121: 0 | R121: 0 | S121: 0 | T121: 0 | U121: 0 | V121: 0 | W121: 0 | X121: 0 | Y121: 0 | Z121: 0
A123: WORKING CAPITAL CHANGES
B124: Days Sales Outstanding | D124: 0 | F124: =$D$124 -> 0 | G124: =$D$124 -> 0 | H124: 0 | I124: 0 | J124: 0 | K124: 0 | L124: 0 | M124: 0 | N124: 0 | O124: 0 | P124: 0 | Q124: 0 | R124: 0 | S124: 0 | T124: 0 | U124: 0 | V124: 0 | W124: 0 | X124: 0 | Y124: 0 | Z124: 0
B125: Percent of Revenues | F125: =F124/(360*F2) -> 0 | G125: 0 | H125: 0 | I125: 0 | J125: 0 | K125: 0 | L125: 0 | M125: 0 | N125: 0 | O125: 0 | P125: 0 | Q125: 0 | R125: 0 | S125: 0 | T125: 0 | U125: 0 | V125: 0 | W125: 0 | X125: 0 | Y125: 0 | Z125: 0
B126: Revenues | F126: =Model!F88 -> 6392.769102 | G126: =Model!G88 -> 19370.09038 | H126: =Model!H88 -> 19563.79128 | I126: =Model!I88 -> 19759.4292 | J126: =Model!J88 -> 19957.02349 | K126: =Model!K88 -> 20156.59372 | L126: =Model!L88 -> 20358.15966 | M126: =Model!M88 -> 20561.74126 | N126: =Model!N88 -> 20767.35867 | O126: =Model!O88 -> 20975.03226 | P126: =Model!P88 -> 21184.78258 | Q126: =Model!Q88 -> 21396.6304 | R126: =Model!R88 -> 21610.59671 | S126: =Model!S88 -> 21826.70268 | T126: =Model!T88 -> 22044.9697 | U126: =Model!U88 -> 22265.4194 | V126: =Model!V88 -> 22488.07359 | W126: =Model!W88 -> 22712.95433 | X126: =Model!X88 -> 22940.08387 | Y126: =Model!Y88 -> 23169.48471 | Z126: =Model!Z88 -> 23401.17956
B127: Debiteuren | F127: =F126*F125 -> 0 | G127: =G126*G125 -> 0 | H127: 0 | I127: 0 | J127: 0 | K127: 0 | L127: 0 | M127: 0 | N127: 0 | O127: 0 | P127: 0 | Q127: 0 | R127: 0 | S127: 0 | T127: 0 | U127: 0 | V127: 0 | W127: 0 | X127: 0 | Y127: 0 | Z127: 0
B128: ∆ Debiteuren | F128: =F127-E127 -> 0 | G128: =G127-F127 -> 0 | H128: 0 | I128: 0 | J128: 0 | K128: 0 | L128: 0 | M128: 0 | N128: 0 | O128: 0 | P128: 0 | Q128: 0 | R128: 0 | S128: 0 | T128: 0 | U128: 0 | V128: 0 | W128: 0 | X128: 0 | Y128: 0 | Z128: 0
B130: Days Payables Outstanding | D130: 0 | F130: =$D$130 -> 0 | G130: =$D$130 -> 0 | H130: 0 | I130: 0 | J130: 0 | K130: 0 | L130: 0 | M130: 0 | N130: 0 | O130: 0 | P130: 0 | Q130: 0 | R130: 0 | S130: 0 | T130: 0 | U130: 0 | V130: 0 | W130: 0 | X130: 0 | Y130: 0 | Z130: 0
B131: Percent of Operating Cost | F131: =F130/(360*F2) -> 0 | G131: 0 | H131: 0 | I131: 0 | J131: 0 | K131: 0 | L131: 0 | M131: 0 | N131: 0 | O131: 0 | P131: 0 | Q131: 0 | R131: 0 | S131: 0 | T131: 0 | U131: 0 | V131: 0 | W131: 0 | X131: 0 | Y131: 0 | Z131: 0
B132: Operating Expenses | F132: =Model!F118 -> 11928.35826 | G132: =Model!G118 -> 39781.52848 | H132: =Model!H118 -> 43831.56719 | I132: =Model!I118 -> 51521.80932 | J132: =Model!J118 -> 59217.49113 | K132: =Model!K118 -> 66918.69423 | L132: =Model!L118 -> 67847.47464 | M132: =Model!M118 -> 68790.18676 | N132: =Model!N118 -> 69747.03956 | O132: =Model!O118 -> 70718.24515 | P132: =Model!P118 -> 71704.01883 | Q132: =Model!Q118 -> 72704.57911 | R132: =Model!R118 -> 73720.1478 | S132: =Model!S118 -> 74750.95002 | T132: =Model!T118 -> 75797.21427 | U132: =Model!U118 -> 76859.17248 | V132: =Model!V118 -> 77937.06007 | W132: =Model!W118 -> 79031.11597 | X132: =Model!X118 -> 80141.58271 | Y132: =Model!Y118 -> 81268.70645 | Z132: =Model!Z118 -> 82412.73705
B133: Crediteuren | F133: =F131*F132 -> 0 | G133: =G131*G132 -> 0 | H133: 0 | I133: 0 | J133: 0 | K133: 0 | L133: 0 | M133: 0 | N133: 0 | O133: 0 | P133: 0 | Q133: 0 | R133: 0 | S133: 0 | T133: 0 | U133: 0 | V133: 0 | W133: 0 | X133: 0 | Y133: 0 | Z133: 0
B134: ∆ Crediteuren | F134: =F133-E133 -> 0 | G134: =G133-F133 -> 0 | H134: 0 | I134: 0 | J134: 0 | K134: 0 | L134: 0 | M134: 0 | N134: 0 | O134: 0 | P134: 0 | Q134: 0 | R134: 0 | S134: 0 | T134: 0 | U134: 0 | V134: 0 | W134: 0 | X134: 0 | Y134: 0 | Z134: 0
B136: ∆ Working Capital | F136: =F128-F134 -> 0 | G136: =G128-G134 -> 0 | H136: 0 | I136: 0 | J136: 0 | K136: 0 | L136: 0 | M136: 0 | N136: 0 | O136: 0 | P136: 0 | Q136: 0 | R136: 0 | S136: 0 | T136: 0 | U136: 0 | V136: 0 | W136: 0 | X136: 0 | Y136: 0 | Z136: 0
A138: CAPEX | F138: 0 | G138: 1 | H138: =G138+1 -> 2 | I138: =H138+1 -> 3 | J138: 4 | K138: 5 | L138: 6 | M138: 7 | N138: 8 | O138: 9 | P138: 10 | Q138: 11 | R138: 12 | S138: 13 | T138: 14 | U138: 15 | V138: 16 | W138: 17 | X138: 18 | Y138: 19 | Z138: 20
B139: Capex 1
C140: Amount | D140: =Model!H15 -> 1465519.303
C141: Year | D141: 0
C142: Capex life | D142: =H31 -> 20
C143: Capex | E143: =-$D$140*(F$138=$D$141) -> -1465519.303 | G143: =-$D$140*(G$138=$D$141) -> 0 | H143: 0 | I143: 0 | J143: 0 | K143: 0 | L143: 0 | M143: 0 | N143: 0 | O143: 0 | P143: 0 | Q143: 0 | R143: 0 | S143: 0 | T143: 0 | U143: 0 | V143: 0 | W143: 0 | X143: 0 | Y143: 0 | Z143: 0
C144: Depreciation | E144: =($D$140/$D$142)*(AND(F$138>$D$141,F138<=($D$141+$D$142))) -> 0 | G144: =($D$140/$D$142)*(AND(G$138>$D$141,G138<=($D$141+$D$142))) -> 73275.96517 | H144: 73275.96517 | I144: 73275.96517 | J144: 73275.96517 | K144: 73275.96517 | L144: 73275.96517 | M144: 73275.96517 | N144: 73275.96517 | O144: 73275.96517 | P144: 73275.96517 | Q144: 73275.96517 | R144: 73275.96517 | S144: 73275.96517 | T144: 73275.96517 | U144: 73275.96517 | V144: 73275.96517 | W144: 73275.96517 | X144: 73275.96517 | Y144: 73275.96517 | Z144: 73275.96517
B146: Capex 2
C147: Year | D147: 0
C148: Capex life | D148: 20
C149: Capex | E149: =-$D$146*(F$138=$D$147) -> 0 | G149: =-$D$146*(G$138=$D$147) -> 0 | H149: 0 | I149: 0 | J149: 0 | K149: 0 | L149: 0 | M149: 0 | N149: 0 | O149: 0 | P149: 0 | Q149: 0 | R149: 0 | S149: 0 | T149: 0 | U149: 0 | V149: 0 | W149: 0 | X149: 0 | Y149: 0 | Z149: 0
C150: Depreciation | E150: =($D$146/$D$148)*(AND(F$138>$D$147,F$138<=($D$147+$D$148))) -> 0 | G150: =($D$146/$D$148)*(AND(G$138>$D$147,G$138<=($D$147+$D$148))) -> 0 | H150: 0 | I150: 0 | J150: 0 | K150: 0 | L150: 0 | M150: 0 | N150: 0 | O150: 0 | P150: 0 | Q150: 0 | R150: 0 | S150: 0 | T150: 0 | U150: 0 | V150: 0 | W150: 0 | X150: 0 | Y150: 0 | Z150: 0
B152: Capex 3
C153: Amount | D153: 0
C154: Year | D154: 0
C155: Capex life | D155: 15
C156: Capex | E156: =-$D$153*(F$138=$D$154) -> 0 | G156: =-$D$153*(G$138=$D$154) -> 0 | H156: 0 | I156: 0 | J156: 0 | K156: 0 | L156: 0 | M156: 0 | N156: 0 | O156: 0 | P156: 0 | Q156: 0 | R156: 0 | S156: 0 | T156: 0 | U156: 0 | V156: 0 | W156: 0 | X156: 0 | Y156: 0 | Z156: 0
C157: Depreciation | E157: =($D$153/$D$155)*(AND(F$138>$D$154,F$138<=($D$154+$D$155))) -> 0 | G157: =($D$153/$D$155)*(AND(G$138>$D$154,G$138<=($D$154+$D$155))) -> 0 | H157: 0 | I157: 0 | J157: 0 | K157: 0 | L157: 0 | M157: 0 | N157: 0 | O157: 0 | P157: 0 | Q157: 0 | R157: 0 | S157: 0 | T157: 0 | U157: 0 | V157: 0 | W157: 0 | X157: 0 | Y157: 0 | Z157: 0
C159: Total Capex | E159: =(E143+E149+E156)*-1 -> 1465519.303 | G159: =G143+G149+G156 -> 0 | H159: 0 | I159: 0 | J159: 0 | K159: 0 | L159: 0 | M159: 0 | N159: 0 | O159: 0 | P159: 0 | Q159: 0 | R159: 0 | S159: 0 | T159: 0 | U159: 0 | V159: 0 | W159: 0 | X159: 0 | Y159: 0 | Z159: 0 | AB159: To model
C160: Transaction Costs | E160: =E196 -> 125000
C161: Beheerkosten | E161: =E197 -> 50000
C162: Interest During Construction | E162: =E199 -> 29361.70763
C163: Total Depreciation Base | E163: =SUM(E159:E162) -> 1669881.011
C165: Total depreciation Rate | D165: =D142 -> 20 | F165: =1/$D$165*F2 -> 0.01666666667 | G165: 0.05 | H165: 0.05 | I165: 0.05 | J165: 0.05 | K165: 0.05 | L165: 0.05 | M165: 0.05 | N165: 0.05 | O165: 0.05 | P165: 0.05 | Q165: 0.05 | R165: 0.05 | S165: 0.05 | T165: 0.05 | U165: 0.05 | V165: 0.05 | W165: 0.05 | X165: 0.05 | Y165: 0.05 | Z165: 0.05
C166: Total depreciation | D166: =E163 -> 1669881.011 | E166: =E144+E150+E157 -> 0 | F166: =MIN(F165*$D$166,E170) -> 27831.35018 | G166: =MIN(G165*$D$166,F170) -> 83494.05055 | H166: 83494.05055 | I166: 83494.05055 | J166: 83494.05055 | K166: 83494.05055 | L166: 83494.05055 | M166: 83494.05055 | N166: 83494.05055 | O166: 83494.05055 | P166: 83494.05055 | Q166: 83494.05055 | R166: 83494.05055 | S166: 83494.05055 | T166: 83494.05055 | U166: 83494.05055 | V166: 83494.05055 | W166: 83494.05055 | X166: 83494.05055 | Y166: 83494.05055 | Z166: 55662.70037
C168: Gross Plant | E168: =E163 -> 1669881.011 | F168: =E168 -> 1669881.011 | G168: =F168 -> 1669881.011 | H168: 1669881.011 | I168: 1669881.011 | J168: 1669881.011 | K168: 1669881.011 | L168: 1669881.011 | M168: 1669881.011 | N168: 1669881.011 | O168: 1669881.011 | P168: 1669881.011 | Q168: 1669881.011 | R168: 1669881.011 | S168: 1669881.011 | T168: 1669881.011 | U168: 1669881.011 | V168: 1669881.011 | W168: 1669881.011 | X168: 1669881.011 | Y168: 1669881.011 | Z168: 1669881.011
C169: Accumulated Depreciation | F169: =E169+F166 -> 27831.35018 | G169: =F169+G166 -> 111325.4007 | H169: 194819.4513 | I169: 278313.5018 | J169: 361807.5524 | K169: 445301.6029 | L169: 528795.6535 | M169: 612289.704 | N169: 695783.7546 | O169: 779277.8051 | P169: 862771.8557 | Q169: 946265.9062 | R169: 1029759.957 | S169: 1113254.007 | T169: 1196748.058 | U169: 1280242.108 | V169: 1363736.159 | W169: 1447230.21 | X169: 1530724.26 | Y169: 1614218.311 | Z169: 1669881.011
C170: Net Plant | F170: =F168-F169 -> 1642049.661 | G170: =G168-G169 -> 1558555.61 | H170: 1475061.56 | I170: 1391567.509 | J170: 1308073.459 | K170: 1224579.408 | L170: 1141085.357 | M170: 1057591.307 | N170: 974097.2564 | O170: 890603.2059 | P170: 807109.1553 | Q170: 723615.1048 | R170: 640121.0542 | S170: 556627.0037 | T170: 473132.9531 | U170: 389638.9026 | V170: 306144.852 | W170: 222650.8015 | X170: 139156.7509 | Y170: 55662.70037 | Z170: 0
A172: Project Cash Flow and IRR
B173: EBITDA | E173: =Model!E120 -> 0 | F173: =Model!F120 -> 47820.41564 | G173: =Model!G120 -> 140967.6175 | H173: =Model!H120 -> 141683.5687 | I173: =Model!I120 -> 136872.5321 | J173: =Model!J120 -> 132100.2087 | K173: =Model!K120 -> 127367.1888 | L173: =Model!L120 -> 129452.0985 | M173: =Model!M120 -> 131569.2759 | N173: =Model!N120 -> 133719.2149 | O173: =Model!O120 -> 135902.4169 | P173: =Model!P120 -> 138119.3912 | Q173: =Model!Q120 -> 140370.6544 | R173: =Model!R120 -> 142656.7313 | S173: =Model!S120 -> 144978.1545 | T173: =Model!T120 -> 147335.4648 | U173: =Model!U120 -> 149729.2112 | V173: =Model!V120 -> 152159.9509 | W173: =Model!W120 -> 154628.2496 | X173: =Model!X120 -> 157134.6819 | Y173: =Model!Y120 -> 159679.8307 | Z173: =Model!Z120 -> 162264.2881
B174: Less: Cap Exp | E174: =-SUM(E159:E161) -> -1640519.303 | F174: =Model!F159 -> 0 | G174: =Model!G159 -> 0 | H174: =Model!H159 -> 0 | I174: =Model!I159 -> 0 | J174: =Model!J159 -> 0 | K174: =Model!K159 -> 0 | L174: =Model!L159 -> 0 | M174: =Model!M159 -> 0 | N174: =Model!N159 -> 0 | O174: =Model!O159 -> 0 | P174: =Model!P159 -> 0 | Q174: =Model!Q159 -> 0 | R174: =Model!R159 -> 0 | S174: =Model!S159 -> 0 | T174: =Model!T159 -> 0 | U174: =Model!U159 -> 0 | V174: =Model!V159 -> 0 | W174: =Model!W159 -> 0 | X174: =Model!X159 -> 0 | Y174: =Model!Y159 -> 0 | Z174: =Model!Z159 -> 0
B175: Less: WC Movements | E175: =Model!E136 -> 0 | F175: =Model!F136 -> 0 | G175: =Model!G136 -> 0 | H175: =Model!H136 -> 0 | I175: =Model!I136 -> 0 | J175: =Model!J136 -> 0 | K175: =Model!K136 -> 0 | L175: =Model!L136 -> 0 | M175: =Model!M136 -> 0 | N175: =Model!N136 -> 0 | O175: =Model!O136 -> 0 | P175: =Model!P136 -> 0 | Q175: =Model!Q136 -> 0 | R175: =Model!R136 -> 0 | S175: =Model!S136 -> 0 | T175: =Model!T136 -> 0 | U175: =Model!U136 -> 0 | V175: =Model!V136 -> 0 | W175: =Model!W136 -> 0 | X175: =Model!X136 -> 0 | Y175: =Model!Y136 -> 0 | Z175: =Model!Z136 -> 0
C176: Pre-tax Free Cash Flow | E176: =E173+E174+E175 -> -1640519.303 | F176: =F173+F174+F175 -> 47820.41564 | G176: 140967.6175 | H176: 141683.5687 | I176: 136872.5321 | J176: 132100.2087 | K176: 127367.1888 | L176: 129452.0985 | M176: 131569.2759 | N176: 133719.2149 | O176: 135902.4169 | P176: 138119.3912 | Q176: 140370.6544 | R176: 142656.7313 | S176: 144978.1545 | T176: 147335.4648 | U176: 149729.2112 | V176: 152159.9509 | W176: 154628.2496 | X176: 157134.6819 | Y176: 159679.8307 | Z176: 162264.2881
B178: Pre-tax Project IRR | D178: =XIRR(E176:Z176,E1:Z1) -> 0.06113750041
B180: EBITDA | E180: =Model!E173 -> 0 | F180: =Model!F173 -> 47820.41564 | G180: =Model!G173 -> 140967.6175 | H180: =Model!H173 -> 141683.5687 | I180: =Model!I173 -> 136872.5321 | J180: =Model!J173 -> 132100.2087 | K180: =Model!K173 -> 127367.1888 | L180: =Model!L173 -> 129452.0985 | M180: =Model!M173 -> 131569.2759 | N180: =Model!N173 -> 133719.2149 | O180: =Model!O173 -> 135902.4169 | P180: =Model!P173 -> 138119.3912 | Q180: =Model!Q173 -> 140370.6544 | R180: =Model!R173 -> 142656.7313 | S180: =Model!S173 -> 144978.1545 | T180: =Model!T173 -> 147335.4648 | U180: =Model!U173 -> 149729.2112 | V180: =Model!V173 -> 152159.9509 | W180: =Model!W173 -> 154628.2496 | X180: =Model!X173 -> 157134.6819 | Y180: =Model!Y173 -> 159679.8307 | Z180: =Model!Z173 -> 162264.2881
B181: Less: Depreciation | F181: =Model!F166 -> 27831.35018 | G181: =Model!G166 -> 83494.05055 | H181: =Model!H166 -> 83494.05055 | I181: =Model!I166 -> 83494.05055 | J181: =Model!J166 -> 83494.05055 | K181: =Model!K166 -> 83494.05055 | L181: =Model!L166 -> 83494.05055 | M181: =Model!M166 -> 83494.05055 | N181: =Model!N166 -> 83494.05055 | O181: =Model!O166 -> 83494.05055 | P181: =Model!P166 -> 83494.05055 | Q181: =Model!Q166 -> 83494.05055 | R181: =Model!R166 -> 83494.05055 | S181: =Model!S166 -> 83494.05055 | T181: =Model!T166 -> 83494.05055 | U181: =Model!U166 -> 83494.05055 | V181: =Model!V166 -> 83494.05055 | W181: =Model!W166 -> 83494.05055 | X181: =Model!X166 -> 83494.05055 | Y181: =Model!Y166 -> 83494.05055 | Z181: =Model!Z166 -> 55662.70037
B182: EBIT | F182: =F180-F181 -> 19989.06546 | G182: =G180-G181 -> 57473.56697 | H182: 58189.51819 | I182: 53378.48157 | J182: 48606.15814 | K182: 43873.13824 | L182: 45958.04795 | M182: 48075.22532 | N182: 50225.16431 | O182: 52408.36638 | P182: 54625.34062 | Q182: 56876.60385 | R182: 59162.68076 | S182: 61484.10399 | T182: 63841.41429 | U182: 66235.16063 | V182: 68665.9003 | W182: 71134.19909 | X182: 73640.63135 | Y182: 76185.78018 | Z182: 106601.5877
B183: Taxes
C184: First Increment | D184: =H25 -> 200000 | F184: =MIN($D$184,F182) -> 19989.06546 | G184: =MIN($D$184,G182) -> 57473.56697 | H184: 58189.51819 | I184: 53378.48157 | J184: 48606.15814 | K184: 43873.13824 | L184: 45958.04795 | M184: 48075.22532 | N184: 50225.16431 | O184: 52408.36638 | P184: 54625.34062 | Q184: 56876.60385 | R184: 59162.68076 | S184: 61484.10399 | T184: 63841.41429 | U184: 66235.16063 | V184: 68665.9003 | W184: 71134.19909 | X184: 73640.63135 | Y184: 76185.78018 | Z184: 106601.5877
C185: Taxes on First Increment | D185: =H26 -> 0.2 | F185: =MAX($D$185*F184,0) -> 3997.813092 | G185: =MAX($D$185*G184,0) -> 11494.71339 | H185: 11637.90364 | I185: 10675.69631 | J185: 9721.231629 | K185: 8774.627649 | L185: 9191.60959 | M185: 9615.045063 | N185: 10045.03286 | O185: 10481.67328 | P185: 10925.06812 | Q185: 11375.32077 | R185: 11832.53615 | S185: 12296.8208 | T185: 12768.28286 | U185: 13247.03213 | V185: 13733.18006 | W185: 14226.83982 | X185: 14728.12627 | Y185: 15237.15604 | Z185: 21320.31754
C186: Second Increment | F186: =F182-F184 -> 0 | G186: =G182-G184 -> 0 | H186: 0 | I186: 0 | J186: 0 | K186: 0 | L186: 0 | M186: 0 | N186: 0 | O186: 0 | P186: 0 | Q186: 0 | R186: 0 | S186: 0 | T186: 0 | U186: 0 | V186: 0 | W186: 0 | X186: 0 | Y186: 0 | Z186: 0
C187: Taxes on Second Increment | D187: =H27 -> 0.25 | F187: =MAX(F186*$D$187,0) -> 0 | G187: =MAX(G186*$D$187,0) -> 0 | H187: 0 | I187: 0 | J187: 0 | K187: 0 | L187: 0 | M187: 0 | N187: 0 | O187: 0 | P187: 0 | Q187: 0 | R187: 0 | S187: 0 | T187: 0 | U187: 0 | V187: 0 | W187: 0 | X187: 0 | Y187: 0 | Z187: 0
C188: Total Taxes | F188: =F185+F187 -> 3997.813092 | G188: =G185+G187 -> 11494.71339 | H188: 11637.90364 | I188: 10675.69631 | J188: 9721.231629 | K188: 8774.627649 | L188: 9191.60959 | M188: 9615.045063 | N188: 10045.03286 | O188: 10481.67328 | P188: 10925.06812 | Q188: 11375.32077 | R188: 11832.53615 | S188: 12296.8208 | T188: 12768.28286 | U188: 13247.03213 | V188: 13733.18006 | W188: 14226.83982 | X188: 14728.12627 | Y188: 15237.15604 | Z188: 21320.31754
B190: After-Tax Project Cash Flow | E190: =E176-E183 -> -1640519.303 | F190: =F176-F188 -> 43822.60255 | G190: =G176-G188 -> 129472.9041 | H190: 130045.6651 | I190: 126196.8358 | J190: 122378.9771 | K190: 118592.5611 | L190: 120260.4889 | M190: 121954.2308 | N190: 123674.182 | O190: 125420.7436 | P190: 127194.323 | Q190: 128995.3336 | R190: 130824.1952 | S190: 132681.3337 | T190: 134567.182 | U190: 136482.1791 | V190: 138426.7708 | W190: 140401.4098 | X190: 142406.5556 | Y190: 144442.6747 | Z190: 140943.9705
B191: After-Tax Project IRR | D191: =XIRR(E190:Z190,E1:Z1) -> 0.05077382624
A193: Uses and Sources of Funds
B194: Uses of Funds - Before Re-financing of Crowd Funding
C195: Capital Expenditures | E195: =Model!H15 -> 1465519.303
C196: Transaction Costs | E196: 125000
C197: Beheerkosten | E197: =Model!E114 -> 50000
C198: Sub-total | E198: =SUM(E195:E197) -> 1640519.303
C199: Interest During Construction | E199: ='Annualized PF'!E43 -> 29361.70763
C200: Cash for Reserves
C201: Total | E201: =E198+E199+E200 -> 1669881.011
B203: Sources of Funds
C204: Crowd Funding - Cash Funding | E204: =D8 -> 1050000
C205: Crowd Funding - Capitalised Interest | E205: ='Annualized PF'!E43 -> 29361.70763
C206: Equity Funding | E206: =E201-E204-E205 -> 590519.3033
C207: Total Sources before Re-financing | E207: =SUM(E204:E206) -> 1669881.011
A209: Re-financing at of Crowd Funding at COD
B210: Uses of Funds
C211: Repayment of Crowd Funding | E211: =E204+E205 -> 1079361.708
C212: Funding of DSCR | E212: =E343 -> 52545.03406
C213: Subtotal | E213: =E211+E212 -> 1131906.742
C214: Repayment of Equity | E214: =MAX(E221-E213,0) -> 16009.76554
C215: Total Uses of Funds | E215: =E213+E214 -> 1147916.507
B217: Sources of Funds
C218: Senior Debt - Sized from DSCR | E218: =E299 -> 1147916.507
C219: Subordinated Debt - Sized from DSCR | E219: =Model!D461 -> 0
C220: Preference
C221: Subtotal | E221: =E218+E219+E220 -> 1147916.507
C222: Added Equity | E222: =MAX(E213-E221,0) -> 0
C223: Total | E223: =E221+E222 -> 1147916.507
A225: Total Final Sources and Uses of Funds
B226: Uses of Funds
C227: Capital Expenditures | E227: =E195 -> 1465519.303
C228: Transaction Costs | E228: =E196 -> 125000
C229: Beheerkosten | E229: =E197 -> 50000
C230: Sub-total | E230: =E198 -> 1640519.303
C231: Interest During Construction | E231: =E199 -> 29361.70763
C232: DSRA | E232: =E212 -> 52545.03406
C233: Total Uses of Funds | E233: =E230+E231+E232 -> 1722426.045
B235: Sources of Funds
C236: Senior Debt | E236: =E299 -> 1147916.507 | F236: =E236/E240 -> 0.6664532916
C237: Junior Debt | E237: =E316 -> 0
C238: Preference Shares | E238: =E220 -> 0
C239: Common Equity | E239: =E206+E222-E214 -> 574509.5378
... 338 more rows

Sheet Annualized PF
A2: Effective Annual Interest
C3: Annual Interest Rate | F3: =Model!D15 -> 0.034 | I3: =Model!D28 -> 0.065
C4: Payments | F4: 4 | I4: 4
C5: Periodic | F5: =F3/F4 -> 0.0085 | I5: =I3/I4 -> 0.01625
C7: Annual Repayment | F7: 100 | I7: 100
C8: Periodic Repayment | F8: =F7/F4 -> 25 | I8: =I7/I4 -> 25
C10: Opening Balance | F10: =E18 -> 1000 | I10: =H18 -> 1000
C11: Repayment 1 | F11: =IF(F4=4,F8) -> 25 | I11: =IF(I4=4,I8) -> 25
C12: Subtotal | F12: =F10-F11 -> 975 | I12: =I10-I11 -> 975
C13: Repayment 2 | F13: =IF(OR(F4=2,F4=4),F8) -> 25 | I13: =IF(OR(I4=2,I4=4),I8) -> 25
C14: Subtotal | F14: =F12-F13 -> 950 | I14: =I12-I13 -> 950
C15: Repayment 3 | F15: =IF(F4=4,F8) -> 25 | I15: =IF(I4=4,I8) -> 25
C16: Subtotal | F16: =F14-F15 -> 925 | I16: =I14-I15 -> 925
C17: Repayment 4 | F17: =F8 -> 25 | I17: =I8 -> 25
C18: Closing Balance | E18: 1000 | F18: =F16-F17 -> 900 | H18: 1000 | I18: =I16-I17 -> 900
C20: Annual | F20: =F10*F3 -> 34 | I20: =I10*I3 -> 65
C21: Periodic | F21: =F5*F10+F12*F5+F14*F5+F16*F5 -> 32.725 | I21: =I5*I10+I12*I5+I14*I5+I16*I5 -> 62.5625
C22: Effective | F22: =F21/F10 -> 0.032725 | I22: =I21/I10 -> 0.0625625
A25: Interest During Construction
C26: Periods of Construction | F26: =Model!H29 -> 12
C28: Total Crowd Funding | F28: =Model!D8 -> 1050000
C29: Periodic Crowd Funding | F29: =F28/F26 -> 87500
C30: Annual Interest Rate | F30: =Model!D9 -> 0.06
C31: Periodic Interest Rate | F31: =F30/12 -> 0.005
C33: Period | F33: 1 | G33: 2 | H33: 3 | I33: 4 | J33: 5 | K33: 6 | L33: 7 | M33: 8 | N33: 9 | O33: 10 | P33: 11 | Q33: 12 | R33: 13 | S33: 14 | T33: 15 | U33: 16 | V33: 17 | W33: 18 | X33: 19 | Y33: 20
C34: Switch | E34: =F26 -> 12 | F34: =F33<=$E$34 -> TRUE | G34: =G33<=$E$34 -> TRUE | H34: TRUE | I34: TRUE | J34: TRUE | K34: TRUE | L34: TRUE | M34: TRUE | N34: TRUE | O34: TRUE | P34: TRUE | Q34: TRUE | R34: FALSE | S34: FALSE | T34: FALSE | U34: FALSE | V34: FALSE | W34: FALSE | X34: FALSE | Y34: FALSE
C35: Draws | E35: =F29 -> 87500 | F35: =$E$35*F34 -> 87500 | G35: =$E$35*G34 -> 87500 | H35: 87500 | I35: 87500 | J35: 87500 | K35: 87500 | L35: 87500 | M35: 87500 | N35: 87500 | O35: 87500 | P35: 87500 | Q35: 87500 | R35: 0 | S35: 0 | T35: 0 | U35: 0 | V35: 0 | W35: 0 | X35: 0 | Y35: 0
C37: Opening Balance | F37: =E40 -> 0 | G37: =F40 -> 87500 | H37: 175437.5 | I37: 263814.6875 | J37: 352633.7609 | K37: 441896.9297 | L37: 531606.4144 | M37: 621764.4465 | N37: 712373.2687 | O37: 803435.135 | P37: 894952.3107 | Q37: 986927.0723 | R37: 1079361.708 | S37: 1079361.708 | T37: 1079361.708 | U37: 1079361.708 | V37: 1079361.708 | W37: 1079361.708 | X37: 1079361.708 | Y37: 1079361.708
C38: Add Funding | F38: =F35 -> 87500 | G38: =G35 -> 87500 | H38: 87500 | I38: 87500 | J38: 87500 | K38: 87500 | L38: 87500 | M38: 87500 | N38: 87500 | O38: 87500 | P38: 87500 | Q38: 87500 | R38: 0 | S38: 0 | T38: 0 | U38: 0 | V38: 0 | W38: 0 | X38: 0 | Y38: 0
C39: Add Interest During Construction | F39: =F42 -> 0 | G39: =G42 -> 437.5 | H39: 877.1875 | I39: 1319.073437 | J39: 1763.168805 | K39: 2209.484649 | L39: 2658.032072 | M39: 3108.822232 | N39: 3561.866343 | O39: 4017.175675 | P39: 4474.761554 | Q39: 4934.635361 | R39: 0 | S39: 0 | T39: 0 | U39: 0 | V39: 0 | W39: 0 | X39: 0 | Y39: 0
C40: Closing Balance | F40: =IF(F34,F37+F38+F39,E40) -> 87500 | G40: =IF(G34,G37+G38+G39,F40) -> 175437.5 | H40: 263814.6875 | I40: 352633.7609 | J40: 441896.9297 | K40: 531606.4144 | L40: 621764.4465 | M40: 712373.2687 | N40: 803435.135 | O40: 894952.3107 | P40: 986927.0723 | Q40: 1079361.708 | R40: 1079361.708 | S40: 1079361.708 | T40: 1079361.708 | U40: 1079361.708 | V40: 1079361.708 | W40: 1079361.708 | X40: 1079361.708 | Y40: 1079361.708
C42: Interest | E42: =F31 -> 0.005 | F42: =F37*$E$42*F34 -> 0 | G42: =G37*$E$42*G34 -> 437.5 | H42: 877.1875 | I42: 1319.073437 | J42: 1763.168805 | K42: 2209.484649 | L42: 2658.032072 | M42: 3108.822232 | N42: 3561.866343 | O42: 4017.175675 | P42: 4474.761554 | Q42: 4934.635361 | R42: 0 | S42: 0 | T42: 0 | U42: 0 | V42: 0 | W42: 0 | X42: 0 | Y42: 0
C43: Total Interest During Construction | E43: =SUM(F42:Y42) -> 29361.70763
F63: 0.03
B64: Kwartaal | C64: BoY | D64: Aflossing | E64: EoY | F64: Interest | H64: Jaar | I64: BoY | J64: Aflossing | K64: EoY | L64: Interest | M64: Effective %
B65: 1 | C65: 750000 | D65: =-($C$65/60) -> -12500 | E65: =C65+D65 -> 737500 | F65: =C65*$F$63/4 -> 5625 | H65: 1 | I65: =C65 -> 750000 | J65: =K65-I65 -> -50000 | K65: =I66 -> 700000 | L65: =SUM(OFFSET($F$65,4*(H65-1),0):OFFSET($F$68,4*(H65-1),0)) -> 21937.5 | M65: =L65/I65 -> 0.02925
B66: =B65+1 -> 2 | C66: =E65 -> 737500 | D66: =-($C$65/60) -> -12500 | E66: =C66+D66 -> 725000 | F66: =C66*$F$63/4 -> 5531.25 | H66: =H65+1 -> 2 | I66: =OFFSET($C$65,4*(H66-1),0) -> 700000 | J66: =K66-I66 -> -50000 | K66: =I67 -> 650000 | L66: =SUM(OFFSET($F$65,4*(H66-1),0):OFFSET($F$68,4*(H66-1),0)) -> 20437.5 | M66: =L66/I66 -> 0.02919642857
B67: =B66+1 -> 3 | C67: =E66 -> 725000 | D67: =-($C$65/60) -> -12500 | E67: =C67+D67 -> 712500 | F67: 5437.5 | H67: =H66+1 -> 3 | I67: =OFFSET($C$65,4*(H67-1),0) -> 650000 | J67: -50000 | K67: 600000 | L67: =SUM(OFFSET($F$65,4*(H67-1),0):OFFSET($F$68,4*(H67-1),0)) -> 18937.5 | M67: 0.02913461538
B68: 4 | C68: 712500 | D68: -12500 | E68: 700000 | F68: 5343.75 | H68: 4 | I68: 600000 | J68: -50000 | K68: 550000 | L68: =SUM(OFFSET($F$65,4*(H68-1),0):OFFSET($F$68,4*(H68-1),0)) -> 17437.5 | M68: 0.0290625
B69: 5 | C69: 700000 | D69: -12500 | E69: 687500 | F69: 5250 | H69: 5 | I69: 550000 | J69: -50000 | K69: 500000 | L69: =SUM(OFFSET($F$65,4*(H69-1),0):OFFSET($F$68,4*(H69-1),0)) -> 15937.5 | M69: 0.02897727273
B70: 6 | C70: 687500 | D70: -12500 | E70: 675000 | F70: 5156.25 | H70: 6 | I70: 500000 | J70: -50000 | K70: 450000 | L70: =SUM(OFFSET($F$65,4*(H70-1),0):OFFSET($F$68,4*(H70-1),0)) -> 14437.5 | M70: 0.028875
B71: 7 | C71: 675000 | D71: -12500 | E71: 662500 | F71: 5062.5 | H71: 7 | I71: 450000 | J71: -50000 | K71: 400000 | L71: =SUM(OFFSET($F$65,4*(H71-1),0):OFFSET($F$68,4*(H71-1),0)) -> 12937.5 | M71: 0.02875
B72: 8 | C72: 662500 | D72: -12500 | E72: 650000 | F72: 4968.75 | H72: 8 | I72: 400000 | J72: -50000 | K72: 350000 | L72: =SUM(OFFSET($F$65,4*(H72-1),0):OFFSET($F$68,4*(H72-1),0)) -> 11437.5 | M72: 0.02859375
B73: 9 | C73: 650000 | D73: -12500 | E73: 637500 | F73: 4875 | H73: 9 | I73: 350000 | J73: -50000 | K73: 300000 | L73: =SUM(OFFSET($F$65,4*(H73-1),0):OFFSET($F$68,4*(H73-1),0)) -> 9937.5 | M73: 0.02839285714
B74: 10 | C74: 637500 | D74: -12500 | E74: 625000 | F74: 4781.25 | H74: 10 | I74: 300000 | J74: -50000 | K74: 250000 | L74: =SUM(OFFSET($F$65,4*(H74-1),0):OFFSET($F$68,4*(H74-1),0)) -> 8437.5 | M74: 0.028125
B75: 11 | C75: 625000 | D75: -12500 | E75: 612500 | F75: 4687.5 | H75: 11 | I75: 250000 | J75: -50000 | K75: 200000 | L75: =SUM(OFFSET($F$65,4*(H75-1),0):OFFSET($F$68,4*(H75-1),0)) -> 6937.5 | M75: 0.02775
B76: 12 | C76: 612500 | D76: -12500 | E76: 600000 | F76: 4593.75 | H76: 12 | I76: 200000 | J76: -50000 | K76: 150000 | L76: =SUM(OFFSET($F$65,4*(H76-1),0):OFFSET($F$68,4*(H76-1),0)) -> 5437.5 | M76: 0.0271875
B77: 13 | C77: 600000 | D77: -12500 | E77: 587500 | F77: 4500 | H77: 13 | I77: 150000 | J77: -50000 | K77: 100000 | L77: =SUM(OFFSET($F$65,4*(H77-1),0):OFFSET($F$68,4*(H77-1),0)) -> 3937.5 | M77: 0.02625
B78: 14 | C78: 587500 | D78: -12500 | E78: 575000 | F78: 4406.25 | H78: 14 | I78: 100000 | J78: -50000 | K78: 50000 | L78: =SUM(OFFSET($F$65,4*(H78-1),0):OFFSET($F$68,4*(H78-1),0)) -> 2437.5 | M78: 0.024375
B79: 15 | C79: 575000 | D79: -12500 | E79: 562500 | F79: 4312.5 | H79: 15 | I79: 50000 | J79: -50000 | K79: 0 | L79: =SUM(OFFSET($F$65,4*(H79-1),0):OFFSET($F$68,4*(H79-1),0)) -> 937.5 | M79: 0.01875
B80: 16 | C80: 562500 | D80: -12500 | E80: 550000 | F80: 4218.75 | L80: =SUM(L65:L79) -> 171562.5 | M80: =AVERAGE(M65:M79) -> 0.02751132826
B81: 17 | C81: 550000 | D81: -12500 | E81: 537500 | F81: 4125
B82: 18 | C82: 537500 | D82: -12500 | E82: 525000 | F82: 4031.25
B83: 19 | C83: 525000 | D83: -12500 | E83: 512500 | F83: 3937.5
B84: 20 | C84: 512500 | D84: -12500 | E84: 500000 | F84: 3843.75
B85: 21 | C85: 500000 | D85: -12500 | E85: 487500 | F85: 3750
B86: 22 | C86: 487500 | D86: -12500 | E86: 475000 | F86: 3656.25
B87: 23 | C87: 475000 | D87: -12500 | E87: 462500 | F87: 3562.5
B88: 24 | C88: 462500 | D88: -12500 | E88: 450000 | F88: 3468.75
B89: 25 | C89: 450000 | D89: -12500 | E89: 437500 | F89: 3375
B90: 26 | C90: 437500 | D90: -12500 | E90: 425000 | F90: 3281.25
B91: 27 | C91: 425000 | D91: -12500 | E91: 412500 | F91: 3187.5
B92: 28 | C92: 412500 | D92: -12500 | E92: 400000 | F92: 3093.75
B93: 29 | C93: 400000 | D93: -12500 | E93: 387500 | F93: 3000
B94: 30 | C94: 387500 | D94: -12500 | E94: 375000 | F94: 2906.25
B95: 31 | C95: 375000 | D95: -12500 | E95: 362500 | F95: 2812.5
B96: 32 | C96: 362500 | D96: -12500 | E96: 350000 | F96: 2718.75
B97: 33 | C97: 350000 | D97: -12500 | E97: 337500 | F97: 2625
B98: 34 | C98: 337500 | D98: -12500 | E98: 325000 | F98: 2531.25
B99: 35 | C99: 325000 | D99: -12500 | E99: 312500 | F99: 2437.5
B100: 36 | C100: 312500 | D100: -12500 | E100: 300000 | F100: 2343.75
B101: 37 | C101: 300000 | D101: -12500 | E101: 287500 | F101: 2250
B102: 38 | C102: 287500 | D102: -12500 | E102: 275000 | F102: 2156.25
B103: 39 | C103: 275000 | D103: -12500 | E103: 262500 | F103: 2062.5
B104: 40 | C104: 262500 | D104: -12500 | E104: 250000 | F104: 1968.75
B105: 41 | C105: 250000 | D105: -12500 | E105: 237500 | F105: 1875
B106: 42 | C106: 237500 | D106: -12500 | E106: 225000 | F106: 1781.25
B107: 43 | C107: 225000 | D107: -12500 | E107: 212500 | F107: 1687.5
B108: 44 | C108: 212500 | D108: -12500 | E108: 200000 | F108: 1593.75
B109: 45 | C109: 200000 | D109: -12500 | E109: 187500 | F109: 1500
B110: 46 | C110: 187500 | D110: -12500 | E110: 175000 | F110: 1406.25
B111: 47 | C111: 175000 | D111: -12500 | E111: 162500 | F111: 1312.5
B112: 48 | C112: 162500 | D112: -12500 | E112: 150000 | F112: 1218.75
B113: 49 | C113: 150000 | D113: -12500 | E113: 137500 | F113: 1125
B114: =B113+1 -> 50 | C114: 137500 | D114: -12500 | E114: 125000 | F114: 1031.25
B115: 51 | C115: 125000 | D115: -12500 | E115: 112500 | F115: 937.5
B116: 52 | C116: 112500 | D116: -12500 | E116: 100000 | F116: 843.75
B117: 53 | C117: 100000 | D117: -12500 | E117: 87500 | F117: 750
B118: =B117+1 -> 54 | C118: 87500 | D118: -12500 | E118: 75000 | F118: 656.25
B119: 55 | C119: 75000 | D119: -12500 | E119: 62500 | F119: 562.5
B120: 56 | C120: 62500 | D120: -12500 | E120: 50000 | F120: 468.75
B121: =B120+1 -> 57 | C121: 50000 | D121: -12500 | E121: 37500 | F121: 375
B122: 58 | C122: 37500 | D122: -12500 | E122: 25000 | F122: 281.25
B123: =B122+1 -> 59 | C123: 25000 | D123: -12500 | E123: 12500 | F123: 187.5
B124: 60 | C124: 12500 | D124: -12500 | E124: 0 | F124: 93.75

Sheet Kosten & Scenario's
K1: Currently on minimum
C3: I | E3: Waarde assets | G3: [EUR] | I3: Scenario analyse De Burg op investeringsruimte capex I | R3: 1
C4: a | E4: Asfaltcollector | F4: Kodi | G4: 432000 | K4: koude | L4: inkoop elektra
E5: capex II | G5: =SUM(G4) -> 432000 | I5: 1 | J5: minimaal | K5: 51840 | L5: 254038 | N5: =L5/K5 -> 4.900424383
C6: b | E6: De Burg + TR | F6: Kodi | G6: 1800000 | I6: 2 | J6: nominaal | K6: 57600 | L6: 282264 | N6: =L6/K6 -> 4.900416667
C7: c | E7: Stammis | F7: Kodi | G7: 70000 | I7: 3 | J7: maximaal | K7: 72000 | L7: 352830 | N7: =L7/K7 -> 4.900416667
K9: =INDEX(K5:K7,$R$3) -> 51840 | L9: =INDEX(L5:L7,$R$3) -> 254038
C10: d
C11: d | H11: E | J11: beschikbaar gesteld vermogen koude | K11: 5300 | N11: 4.900416667
E12: totaal capex I | G12: =SUM(G6:G11) -> 1870000
E13: total capex | G13: =G5+G12 -> 2302000
I14: Scenario analyse De Burg op investeringsruimte capex I
E15: transactiekosten | I15: - | J15: rente aandeelhouderslening | K15: 0.1
D16: 1 | E16: Juridische zaken | F16: West Advocaten | G16: 10379 | I16: - | J16: rente juniorlening | K16: 0.075
D17: 2 | E17: Notaris (begroot) | F17: Van Putten van Apeldoorn | G17: 5000 | H17: E | I17: - | J17: looptijd junior lening | K17: 8
D18: 3 | E18: Juridische zaken | F18: Octo Consilium | G18: 5000 | H18: E
D19: 4 | E19: fee financiering | F19: DuurzaamInvesteren | G19: 21000 | I19: Scenario analyse op DSCR senior loan
D20: 5 | E20: fee financiering | F20: Escoplan | G20: 10500 | I20: - | J20: 10% wanbetaling over een periode van 5 jaar
D21: 6 | E21: fee financiering | G21: 5000 | H21: E | I21: - | J21: electriciteitsprijs veranderingen:
D22: 7 | E22: arrangement, advies, JZ | F22: via ESCO2Service | G22: 45000
D23: 8 | E23: rentekosten ESCO2Service | F23: 7% p.a. (107k-45k) | G23: 4340 | I23: De gevoeligheid van de Burg case voor ontwikkelingen op de elektriciteitsmarkt is laag. Bij een stijgende elektriciteitsprijs stijgt de kostprijs voor de geleverde koude. Bij dalende prijzen daalt de kostprijs. De ontwikkeling van de energieprijzen werkt door in de CBS index, waardoor de inkomsten mee bewegen met de kostprijs ontwikkeling. In deze scenario analyse is alleen een stijgende kostprijs doorgerekend. De CBS index is op 1,5% per jaar blijven staan, gelijk aan de base case. Dit is een conservatieve (stress) aanname. In de praktijk bewegen de inkomsten mee met de ontwikkelingen op de energiemarkt.
D24: 9 | E24: afsluitprovisie | F24: ASN Bank (1%) | G24: 10500 | H24: E
D25: 10 | E25: rentekosten bouwdepot | F25: ASN Bank (0,5%) | G25: 5250 | H25: E
E26: totaal | G26: =SUM(G16:G25) -> 121969
C28: II | E28: Rentevergoeding | F28: [%]
C29: a | E29: Kodi | F29: 0
C30: b | E30: SAUND | F30: 0
C31: c | E31: ASN Bank | F31: 0.034
C33: III | E33: Managementfee | G33: [EUR]
C34: a | E34: ESCO2Service | F34: 0.02 | G34: 45000
C36: IV | E36: Managementvergoeding | F36: [%]
E37: SAUND / KODI | F37: 0.005
C39: V | E39: Beheervergoeding | F39: [%]
E40: SAUND | F40: 0.01
C42: VI | E42: M&V vergoeding | F42: [%]
E43: SAUND | F43: 0.003
C45: VII | E45: Financieringsfee | F45: [%]
E46: Escoplan | F46: 0.01 | G46: 10500
E47: DuurzaamInvesteren | F47: 0.02 | G47: 21000
E48: Overig | G48: N.T.B.
C50: VIII | E50: Aanneemsom installatie | F50: [EUR]
C51: a | E51: Asfaltcollector | G51: 432000
C52: b | E52: De Burg, TR, Stammis | G52: 1870000
C54: IX | E54: Onderhoudskosten | F54: [%]
F55: 0.03
C57: X | E57: Investering deelproject | G57: [EUR]
C60: XI | E60: Ontwikkelfee basis | F60: [%]
F61: 0.01
C63: XII | E63: Ontwikkelfee deelproject | F63: [%]
F64: 0.03
F65: 0.03
